fUSD/lending_fUSD_20260402
["ID","MTS","AMOUNT","RATE_DAILY","PERIOD"]
[419296294,1775124651163,-153.537546,0.00015793,2]
[419296295,1775124651173,-153.553062,0.00015793,2]
[419296296,1775124651182,-153.553062,0.00015793,2]
[419296297,1775124651192,-153.553062,0.00015793,2]
[419296298,1775124651201,-153.553062,0.00015793,2]
[419296299,1775124651210,-200.0,0.00015793,2]
[419296300,1775124651219,-1524.0,0.00015793,2]
[419296301,1775124651229,-712.93598793,0.00015793,2]
[419296302,1775124651238,-1524.0,0.00015793,2]
[419296303,1775124651248,-183.57157804,0.00015793,2]
[419296304,1775124651257,-1524.0,0.00015793,2]
[419296305,1775124651267,-1524.0,0.00015793,2]
[419296306,1775124651276,-1524.0,0.00015793,2]
[419296307,1775124651285,-1524.0,0.00015793,2]
[419296308,1775124651294,-1524.0,0.00015793,2]
[419296309,1775124651303,-252.72194689,0.00015793,2]
[419296310,1775124651313,-152.0,0.00015793,2]
[419296311,1775124651322,-152.35058231,0.00015793,2]
[419296312,1775124651333,-268.53713314,0.00015793,2]
[419296313,1775124651342,-500.0,0.00015793,2]
[419296314,1775124651351,-462.329189,0.00015793,2]
[419296315,1775124651360,-462.329189,0.00015793,2]
[419296316,1775124651371,-312.217059,0.00015793,2]
[419296317,1775124651381,-312.217059,0.00015793,2]
[419296318,1775124651391,-462.329189,0.00015793,2]
[419296319,1775124651400,-312.217059,0.00015793,2]
[419296320,1775124651409,-462.329189,0.00015793,2]
[419296321,1775124651419,-312.217059,0.00015793,2]
[419296322,1775124651428,-160.0,0.00015793,3]
[419296323,1775124651437,-169.0,0.00015793,3]
[419296324,1775124651446,-200.0,0.00015793,2]
[419296325,1775124651456,-167.0,0.00015793,3]
[419296326,1775124651466,-1000.0,0.00015793,2]
[419296327,1775124651475,-1000.0,0.00015793,2]
[419296328,1775124651484,-882.60643401,0.00015793,2]
[419296329,1775124651494,-288.09023334,0.00015793,2]
[419296330,1775124651503,-500.0,0.00015798,2]
[419296331,1775124651513,-421.84600938,0.00015798,2]
[419296332,1775124651522,-163.10364202,0.00015799,2]
[419296333,1775124651531,-198.06220285,0.000158,2]
[419296334,1775124651540,-150.0,0.000158,2]
[419296335,1775124651549,-490.813785,0.000158,2]
[419296336,1775124651558,-821.836073,0.000158,2]
[419296337,1775124651567,-490.813785,0.000158,2]
[419296338,1775124651577,-821.836073,0.000158,2]
[419296339,1775124651586,-490.813785,0.000158,2]
[419296340,1775124651595,-821.836073,0.000158,2]
[419296341,1775124651604,-490.813785,0.000158,2]
[419296342,1775124651613,-821.836073,0.000158,2]
[419296343,1775124651623,-2000.0,0.000158,2]
[419296344,1775124651632,-2000.0,0.000158,2]
[419296345,1775124651641,-2000.0,0.000158,2]
[419296346,1775124651650,-1571.21042,0.000158,2]
[419296347,1775124651659,-1571.21041,0.000158,2]
[419296348,1775124651669,-1571.21041,0.000158,2]
[419296349,1775124651678,-151.0,0.000158,2]
[419296350,1775124651687,-151.0,0.000158,2]
[419296351,1775124651696,-8400.0,0.000158,5]
[419296352,1775124651706,-622.014952,0.000158,2]
[419296353,1775124651715,-622.014952,0.000158,2]
[419296354,1775124651724,-622.014952,0.000158,2]
[419296355,1775124651733,-622.014952,0.000158,2]
[419296356,1775124651742,-350.0,0.00015801,2]
[419296357,1775124651751,-150.0,0.00015808,2]
[419296358,1775124651760,-160.0,0.00015809,2]
[419296359,1775124651770,-160.0,0.00015809,2]
[419296360,1775124651779,-2476.0,0.0001581,2]
[419296361,1775124651788,-150.0,0.00015829,2]
[419296362,1775124651797,-166.29,0.00015833,2]
[419296363,1775124651808,-150.0,0.00015834,2]
[419296364,1775124651818,-150.0,0.00015834,2]
[419296365,1775124651827,-389.0,0.00015853,2]
[419296366,1775124651836,-150.0,0.00015855,2]
[419296367,1775124651845,-150.0,0.00015855,2]
[419296368,1775124651855,-284.1523157,0.00015867,2]
[419296369,1775124651865,-150.0,0.00015872,2]
[419296370,1775124651874,-150.0,0.00015886,2]
[419296371,1775124651883,-150.0,0.0001589,2]
[419296372,1775124651893,-150.0,0.0001589,2]
[419296373,1775124651902,-500.0,0.0001589,2]
[419296374,1775124651911,-519.17533645,0.0001589,2]
[419296375,1775124651920,-2000.0,0.0001589,2]
[419296376,1775124651930,-150.0,0.00015893,2]
[419296377,1775124651939,-2606.93,0.00015895,2]
[419296378,1775124651948,-151.0,0.00015897,2]
[419296379,1775124651958,-5888.0,0.00015898,2]
[419296380,1775124651968,-450.0,0.000159,2]
[419296381,1775124651978,-151.0,0.000159,2]
[419296382,1775124651987,-151.0,0.000159,2]
[419296383,1775124651996,-153.553062,0.000159,2]
[419296384,1775124652006,-153.553062,0.000159,2]
[419296385,1775124652015,-153.553062,0.000159,2]
[419296386,1775124652024,-153.553062,0.000159,2]
[419296387,1775124652033,-11300.0,0.000159,5]
[419296388,1775124652043,-462.329189,0.000159,2]
[419296389,1775124652052,-214.36442557,0.000159,2]
[419296390,1775124652062,-462.329189,0.000159,2]
[419296391,1775124652071,-312.217059,0.000159,2]
[419296392,1775124652083,-1433.68048542,0.000159,2]
[419296393,1775124652093,-312.217059,0.000159,2]
[419296394,1775124652102,-462.329189,0.000159,2]
[419296395,1775124652112,-462.329189,0.000159,2]
[419296396,1775124652121,-312.217059,0.000159,2]
[419296397,1775124652131,-312.217059,0.000159,2]
[419296398,1775124652140,-17380.35333994,0.000159,2]
[419296399,1775124652149,-150.0,0.00015927,2]
[419296400,1775124652158,-500.0,0.00015935,2]
[419296401,1775124652168,-500.0,0.00015935,2]
[419296402,1775124652177,-500.0,0.00015935,2]
[419296403,1775124652186,-500.0,0.00015935,2]
[419296404,1775124652196,-2392.02,0.00015935,2]
[419296405,1775124652205,-150.0,0.00015936,2]
[419296406,1775124652214,-150.0,0.00015943,2]
[419296407,1775124652224,-150.0,0.00015945,2]
[419296408,1775124652233,-150.0,0.00015945,2]
[419296409,1775124652242,-1325.59545764,0.00015951,2]
[419296410,1775124652251,-200.0,0.00015951,2]
[419296411,1775124652261,-200.0,0.00015951,2]
[419296412,1775124652270,-200.0,0.00015951,2]
[419296413,1775124652279,-187.31,0.00015951,2]
[419296414,1775124652288,-200.0,0.00015951,2]
[419296415,1775124652298,-5888.0,0.00015951,2]
[419296416,1775124652307,-385.43,0.00015952,2]
[419296417,1775124652318,-500.0,0.00015953,2]
[419296418,1775124652328,-4036.0,0.00015954,2]
[419296419,1775124652338,-12004.96673852,0.00015956,2]
[419296420,1775124652348,-4020.34449656,0.00015956,2]
[419296421,1775124652358,-151.0,0.00015956,2]
[419296422,1775124652368,-151.0,0.00015956,2]
[419296423,1775124652378,-5888.0,0.00015957,2]
[419296424,1775124652388,-2476.0,0.00015961,2]
[419296425,1775124652397,-1571.0,0.00015962,2]
[419296426,1775124652406,-400.0,0.0001597,2]
[419296427,1775124652416,-500.70581269,0.0001597,2]
[419296428,1775124652425,-1930.89693021,0.0001597,2]
[419296429,1775124652435,-350.0,0.00015971,2]
[419296430,1775124652444,-187.3094692,0.00015975,2]
[419296431,1775124652454,-1571.0,0.00015978,2]
[419296432,1775124652464,-197.11348968,0.00015984,2]
[419296433,1775124652473,-160.64524864,0.00015984,2]
[419296434,1775124652482,-490.813785,0.00015987,2]
[419296435,1775124652491,-821.836073,0.00015987,2]
[419296436,1775124652500,-490.813785,0.00015987,2]
[419296437,1775124652510,-821.836073,0.00015987,2]
[419296438,1775124652519,-490.813785,0.00015987,2]
[419296439,1775124652528,-821.836073,0.00015987,2]
[419296440,1775124652538,-490.813785,0.00015987,2]
[419296441,1775124652548,-821.836073,0.00015987,2]
[419296442,1775124652557,-500.0,0.00015994,2]
[419296443,1775124652567,-642.6141901,0.00015994,2]
[419296444,1775124652576,-192.63667107,0.00015994,2]
[419296445,1775124652586,-500.0,0.00015994,2]
[419296446,1775124652595,-500.0,0.00015994,2]
[419296447,1775124652605,-622.014952,0.00015994,2]
[419296448,1775124652614,-622.014952,0.00015994,2]
[419296449,1775124652624,-622.014952,0.00015994,2]
[419296450,1775124652633,-622.014952,0.00015994,2]
[419296451,1775124652644,-500.0,0.00015994,2]
[419296452,1775124652655,-549.05,0.00015994,2]
[419296453,1775124652665,-500.0,0.00015994,2]
[419296454,1775124652675,-151.0,0.00015997,2]
[419296455,1775124652683,-151.0,0.00015998,2]
[419296456,1775124652692,-151.0,0.00015998,2]
[419296457,1775124652702,-4566.0,0.00015998,2]
[419296458,1775124652711,-1090.37665391,0.00015999,5]
[419296459,1775124652721,-500.0,0.00015999,2]
[419296460,1775124652730,-500.0,0.00015999,2]
[419296461,1775124652740,-500.0,0.00015999,2]
[419296462,1775124652749,-500.0,0.00015999,2]
[419296463,1775124652759,-500.0,0.00015999,2]
[419296464,1775124652768,-500.0,0.00015999,2]
[419296465,1775124652778,-500.0,0.00015999,2]
[419296466,1775124652787,-500.0,0.00015999,2]
[419296467,1775124652797,-500.0,0.00015999,2]
[419296468,1775124652808,-500.0,0.00015999,2]
[419296469,1775124652819,-500.0,0.00015999,2]
[419296470,1775124652829,-518.65929478,0.00015999,2]
[419296471,1775124652839,-500.0,0.00015999,2]
[419296472,1775124652848,-500.0,0.00015999,2]
[419296473,1775124652860,-500.0,0.00015999,2]
[419296474,1775124652870,-500.0,0.00015999,2]
[419296475,1775124652880,-500.0,0.00015999,2]
[419296476,1775124652890,-500.0,0.00015999,2]
[419296477,1775124652901,-381.5772541,0.00015999,2]
[419296478,1775124652912,-505.82795553,0.00015999,2]
[419296479,1775124652922,-500.0,0.00015999,2]
[419296480,1775124652932,-500.0,0.00015999,2]
[419296481,1775124652943,-500.0,0.00015999,2]
[419296482,1775124652953,-500.0,0.00015999,2]
[419296483,1775124652963,-500.0,0.00015999,2]
[419296484,1775124652973,-500.0,0.00015999,2]
[419296485,1775124652985,-500.0,0.00015999,2]
[419296486,1775124652994,-500.0,0.00015999,2]
[419296487,1775124653004,-500.0,0.00015999,2]
[419296488,1775124653013,-500.0,0.00015999,2]
[419296489,1775124653023,-500.0,0.00015999,2]
[419296490,1775124653033,-500.0,0.00015999,2]
[419296491,1775124653043,-500.0,0.00015999,2]
[419296492,1775124653052,-500.0,0.00015999,2]
[419296493,1775124653062,-325.34166394,0.00015999,2]
[419296494,1775124653071,-500.0,0.00015999,2]
[419296495,1775124653082,-500.0,0.00015999,2]
[419296496,1775124653091,-500.0,0.00015999,2]
[419296497,1775124653100,-500.0,0.00015999,2]
[419296498,1775124653109,-549.05,0.00015999,2]
[419296499,1775124653118,-549.05,0.00015999,2]
[419296500,1775124653127,-549.05,0.00015999,2]
[419296501,1775124653137,-549.05,0.00015999,2]
[419296502,1775124653146,-549.05,0.00015999,2]
[419296503,1775124653155,-500.0,0.00015999,2]
[419296504,1775124653165,-581.88386575,0.00015999,2]
[419296505,1775124653174,-150.00000001,0.00016,2]
[419296506,1775124653183,-150.0,0.00016,2]
[419296507,1775124653193,-150.0,0.00016,2]
[419296508,1775124653202,-150.0,0.00016,2]
[419296509,1775124653212,-150.33671718,0.00016,2]
[419296510,1775124653221,-150.45798405,0.00016,2]
[419296511,1775124653230,-150.0,0.00016,2]
[419296512,1775124653239,-150.0,0.00016,2]
[419296513,1775124653249,-150.0,0.00016,2]
[419296514,1775124653258,-150.00000001,0.00016,2]
[419296515,1775124653267,-150.0,0.00016,2]
[419296516,1775124653276,-509940.99322706,0.00016,2]
[419296517,1775124654804,-297.56269442,0.00013893,2]
[419296518,1775124654814,-1090.78250558,0.00016,2]
[419296519,1775124654834,-417.58750548,0.00016,2]
[419296625,1775125823525,-443.35,0.00011507,2]
[419296626,1775125823546,-319.0,0.00011507,2]
[419296632,1775125834263,-579.12658211,0.00012083,2]
[419296633,1775125834273,-448.07422048,0.00012658,2]
[419296634,1775125834282,-250.0,0.00013,2]
[419296635,1775125834292,-169.35,0.00013119,2]
[419296636,1775125834302,-622.22,0.00013144,2]
[419296637,1775125834311,-151.11,0.00013494,2]
[419296638,1775125834320,-1200.0,0.00013699,2]
[419296639,1775125834330,-2900.0,0.000137,5]
[419296640,1775125834339,-164.35655208,0.00013773,2]
[419296641,1775125834348,-3677.79,0.00013784,2]
[419296642,1775125834358,-3677.79,0.00013784,2]
[419296643,1775125834367,-3677.79,0.00013784,2]
[419296644,1775125834377,-2048.45546551,0.00013784,2]
[419296659,1775125838172,-1338.80223265,0.00013784,2]
[419296660,1775125838184,-290.53230184,0.00013784,2]
[419296661,1775125838193,-1464.60034188,0.00013784,2]
[419296662,1775125838205,-400.0,0.00013784,2]
[419296663,1775125838231,-1813.18965812,0.00013784,2]
[419296664,1775125838241,-422.59477887,0.00013784,2]
[419296665,1775125838250,-300.0,0.00013792,2]
[419296666,1775125838260,-250.707,0.00013793,2]
[419296667,1775125838270,-150.0,0.00013793,2]
[419296668,1775125838279,-6984.54247453,0.00013794,2]
[419296669,1775125838295,-36675.68032547,0.00013794,2]
[419296670,1775125838304,-29324.31967452,0.00013794,2]
[419296671,1775125838459,-1044830.90894374,0.00013794,2]
[419296679,1775125840402,-3300.0,0.00013794,2]
[419296682,1775125840463,-422544.77138174,0.00013794,2]
[419296683,1775125840472,-5900.0,0.000138,5]
[419296684,1775125840482,-153.37386469,0.0001381,2]
[419296685,1775125840492,-10650.50208504,0.0001381,2]
[419296686,1775125840502,-150.0,0.00013872,2]
[419296687,1775125840511,-150.38719726,0.00013872,2]
[419296688,1775125840521,-500.44803489,0.00013873,2]
[419296689,1775125840541,-500.48315369,0.00013873,2]
[419296690,1775125840552,-500.0,0.00013873,2]
[419296691,1775125840563,-500.0,0.00013873,2]
[419296692,1775125840572,-500.0,0.00013873,2]
[419296693,1775125840583,-164.98377626,0.00013873,2]
[419296694,1775125840592,-500.0,0.00013873,2]
[419296695,1775125840603,-500.0,0.00013873,2]
[419296696,1775125840612,-500.0,0.00013873,2]
[419296697,1775125840622,-159.91138824,0.00013873,2]
[419296698,1775125840632,-500.0,0.00013873,2]
[419296699,1775125840643,-500.0,0.00013873,2]
[419296700,1775125840653,-500.0,0.00013873,2]
[419296701,1775125840663,-500.47003133,0.00013873,2]
[419296702,1775125840672,-502.48397435,0.00013873,2]
[419296703,1775125840682,-500.30491238,0.00013873,2]
[419296704,1775125840692,-165.99284076,0.00013873,2]
[419296705,1775125840702,-1071.9,0.00013873,2]
[419296706,1775125840711,-500.0,0.00013885,2]
[419296707,1775125840721,-200.0,0.00013885,2]
[419296708,1775125840731,-500.0,0.00013885,2]
[419296709,1775125840742,-500.0,0.00013885,2]
[419296710,1775125840751,-500.0,0.00013885,2]
[419296711,1775125840762,-500.0,0.00013885,2]
[419296712,1775125840772,-500.0,0.00013885,2]
[419296713,1775125840783,-500.0,0.00013885,2]
[419296714,1775125840794,-500.0,0.00013885,2]
[419296715,1775125840804,-500.0,0.00013885,2]
[419296716,1775125840815,-500.0,0.00013885,2]
[419296717,1775125840825,-493.51314513,0.00013885,2]
[419296718,1775125840834,-151.0,0.00013885,2]
[419296719,1775125840844,-153.43679859,0.00013885,2]
[419296720,1775125840853,-151.0,0.00013885,2]
[419296721,1775125840864,-151.0,0.00013885,2]
[419296722,1775125840874,-151.0,0.00013885,2]
[419296723,1775125840885,-151.0,0.00013885,2]
[419296724,1775125840895,-151.0,0.00013885,2]
[419296725,1775125840904,-161.48563697,0.00013885,2]
[419296726,1775125840914,-500.0,0.00013885,2]
[419296727,1775125840925,-73450.6132,0.00013894,2]
[419296728,1775125840935,-500.0,0.00013899,2]
[419296729,1775125840946,-500.0,0.00013899,2]
[419296730,1775125840956,-350.65542011,0.00013899,2]
[419296731,1775125840965,-8900.0,0.000139,5]
[419296732,1775125840975,-1500.0,0.0001391,2]
[419296733,1775125840985,-1000.0,0.00013932,2]
[419296734,1775125840995,-443.17780128,0.00014144,2]
[419296735,1775125841004,-25771.10182965,0.00014144,2]
[419296736,1775125841015,-468.27579115,0.00014144,2]
[419296737,1775125841026,-1071.9,0.00014147,2]
[419296738,1775125841041,-500.0,0.00014159,2]
[419296739,1775125841051,-150.0,0.000142,2]
[419296740,1775125841062,-151.0,0.00014225,2]
[419296741,1775125841072,-666.0,0.00014227,2]
[419296742,1775125841082,-666.0,0.00014227,2]
[419296743,1775125841091,-500.0,0.00014227,2]
[419296744,1775125841101,-305.251857,0.00014227,2]
[419296745,1775125841111,-500.0,0.00014227,2]
[419296746,1775125841121,-500.0,0.00014227,2]
[419296747,1775125841132,-155.49042183,0.00014227,2]
[419296748,1775125841141,-500.0,0.00014227,2]
[419296749,1775125841151,-500.0,0.00014227,2]
[419296750,1775125841161,-282.87386493,0.00014227,2]
[419296751,1775125841171,-198.90839689,0.00014227,2]
[419296752,1775125841181,-1090.37665391,0.00014227,5]
[419296753,1775125841191,-508.65862639,0.00014227,2]
[419296754,1775125841200,-500.0,0.00014227,2]
[419296755,1775125841210,-500.0,0.00014227,2]
[419296756,1775125841220,-500.0,0.00014227,2]
[419296757,1775125841230,-500.0,0.00014227,2]
[419296758,1775125841240,-500.0,0.00014227,2]
[419296759,1775125841250,-500.0,0.00014227,2]
[419296760,1775125841260,-500.0,0.00014227,2]
[419296761,1775125841270,-262.05217327,0.00014227,2]
[419296762,1775125841280,-500.0,0.00014227,2]
[419296763,1775125841290,-500.0,0.00014227,2]
[419296764,1775125841300,-500.0,0.00014227,2]
[419296765,1775125841310,-500.0,0.00014227,2]
[419296766,1775125841320,-500.0,0.00014227,2]
[419296767,1775125841330,-500.0,0.00014227,2]
[419296768,1775125841340,-500.0,0.00014227,2]
[419296769,1775125841350,-500.0,0.00014227,2]
[419296770,1775125841360,-500.0,0.00014227,2]
[419296771,1775125841370,-500.0,0.00014227,2]
[419296772,1775125841380,-500.0,0.00014227,2]
[419296773,1775125841389,-500.0,0.00014227,2]
[419296774,1775125841399,-500.0,0.00014227,2]
[419296775,1775125841408,-509.91183271,0.00014227,2]
[419296776,1775125841419,-500.0,0.00014227,2]
[419296777,1775125841428,-500.0,0.00014227,2]
[419296778,1775125841438,-500.0,0.00014227,2]
[419296779,1775125841448,-500.0,0.00014227,2]
[419296780,1775125841457,-500.0,0.00014227,2]
[419296781,1775125841467,-500.0,0.00014227,2]
[419296782,1775125841477,-500.0,0.00014227,2]
[419296783,1775125841487,-500.0,0.00014227,2]
[419296784,1775125841498,-500.0,0.00014227,2]
[419296785,1775125841508,-500.0,0.00014227,2]
[419296786,1775125841518,-500.0,0.00014227,2]
[419296787,1775125841528,-500.0,0.00014227,2]
[419296788,1775125841538,-500.0,0.00014227,2]
[419296789,1775125841554,-500.0,0.00014227,2]
[419296790,1775125841566,-500.0,0.00014227,2]
[419296791,1775125841576,-500.0,0.00014227,2]
[419296792,1775125841587,-500.0,0.00014227,2]
[419296793,1775125841597,-500.0,0.00014227,2]
[419296794,1775125841609,-500.0,0.00014227,2]
[419296795,1775125841619,-500.0,0.00014227,2]
[419296796,1775125841630,-500.0,0.00014227,2]
[419296797,1775125841641,-500.0,0.00014227,2]
[419296798,1775125841652,-500.0,0.00014227,2]
[419296799,1775125841663,-500.0,0.00014227,2]
[419296800,1775125841673,-500.0,0.00014227,2]
[419296801,1775125841684,-500.0,0.00014227,2]
[419296802,1775125841696,-500.0,0.00014227,2]
[419296803,1775125841706,-500.0,0.00014227,2]
[419296804,1775125841717,-500.0,0.00014227,2]
[419296805,1775125841727,-506.48015302,0.00014227,2]
[419296806,1775125841736,-500.0,0.00014227,2]
[419296807,1775125841746,-500.0,0.00014227,2]
[419296808,1775125841756,-500.0,0.00014227,2]
[419296809,1775125841766,-500.0,0.00014227,2]
[419296810,1775125841777,-500.0,0.00014227,2]
[419296811,1775125841789,-500.0,0.00014227,2]
[419296812,1775125841800,-500.0,0.00014227,2]
[419296813,1775125841811,-500.0,0.00014227,2]
[419296814,1775125841820,-500.0,0.00014227,2]
[419296815,1775125841829,-500.0,0.00014227,2]
[419296816,1775125841839,-500.0,0.00014227,2]
[419296817,1775125841848,-510.45514937,0.00014227,2]
[419296818,1775125841859,-500.0,0.00014227,2]
[419296819,1775125841868,-500.0,0.00014227,2]
[419296820,1775125841878,-500.0,0.00014227,2]
[419296821,1775125841889,-500.0,0.00014227,2]
[419296822,1775125841898,-500.0,0.00014227,2]
[419296823,1775125841908,-500.0,0.00014227,2]
[419296824,1775125841917,-500.0,0.00014227,2]
[419296825,1775125841927,-500.0,0.00014227,2]
[419296826,1775125841936,-500.0,0.00014227,2]
[419296827,1775125841946,-500.0,0.00014227,2]
[419296828,1775125841956,-500.0,0.00014227,2]
[419296829,1775125841966,-500.0,0.00014227,2]
[419296830,1775125841976,-500.0,0.00014227,2]
[419296831,1775125841985,-500.0,0.00014227,2]
[419296832,1775125841995,-488.21639013,0.00014227,2]
[419296833,1775125842004,-500.0,0.00014227,2]
[419296834,1775125842014,-500.0,0.00014227,2]
[419296835,1775125842023,-500.0,0.00014227,2]
[419296836,1775125842032,-500.0,0.00014227,2]
[419296837,1775125842042,-500.0,0.00014227,2]
[419296838,1775125842052,-500.0,0.00014227,2]
[419296839,1775125842061,-500.0,0.00014227,2]
[419296840,1775125842071,-500.0,0.00014227,2]
[419296841,1775125842080,-500.0,0.00014227,2]
[419296842,1775125842090,-500.0,0.00014227,2]
[419296843,1775125842099,-500.0,0.00014227,2]
[419296844,1775125842108,-500.0,0.00014227,2]
[419296845,1775125842118,-500.0,0.00014227,2]
[419296846,1775125842128,-549.05,0.00014227,2]
[419296847,1775125842139,-549.05,0.00014227,2]
[419296848,1775125842148,-549.05,0.00014227,2]
[419296849,1775125842158,-549.05,0.00014227,2]
[419296850,1775125842168,-549.05,0.00014227,2]
[419296851,1775125842178,-549.05,0.00014227,2]
[419296852,1775125842189,-549.05,0.00014227,2]
[419296853,1775125842198,-151.11,0.00014244,2]
[419296854,1775125842208,-229.62,0.00014267,2]
[419296855,1775125842218,-700.13141753,0.00014272,2]
[419296856,1775125842228,-500.50185113,0.00014273,2]
[419296857,1775125842237,-590.83132733,0.00014273,2]
[419296858,1775125842247,-500.0,0.00014273,2]
[419296859,1775125842256,-500.0,0.00014273,2]
[419296860,1775125842267,-500.0,0.00014273,2]
[419296861,1775125842276,-337.66380378,0.00014273,2]
[419296862,1775125842285,-501.30239513,0.00014273,2]
[419296863,1775125842295,-164.72699301,0.00014273,2]
[419296864,1775125842305,-500.0,0.00014273,2]
[419296865,1775125842319,-500.0,0.00014273,2]
[419296866,1775125842329,-500.48771159,0.00014273,2]
[419296867,1775125842339,-163.53544722,0.00014273,2]
[419296868,1775125842348,-304.17782352,0.00014273,2]
[419296869,1775125842358,-500.40097666,0.00014273,2]
[419296870,1775125842367,-500.0,0.00014273,2]
[419296871,1775125842377,-500.0,0.00014273,2]
[419296872,1775125842387,-161.84197256,0.00014273,2]
[419296873,1775125842396,-500.0,0.00014273,2]
[419296874,1775125842406,-500.96174367,0.00014273,2]
[419296875,1775125842415,-500.0,0.00014273,2]
[419296876,1775125842425,-500.0,0.00014273,2]
[419296877,1775125842434,-500.0,0.00014273,2]
[419296878,1775125842444,-500.62845859,0.00014273,2]
[419296879,1775125842454,-359.66331739,0.00014273,2]
[419296880,1775125842464,-500.0,0.00014273,2]
[419296881,1775125842473,-500.0,0.00014273,2]
[419296882,1775125842483,-500.0,0.00014273,2]
[419296883,1775125842492,-518.78086714,0.00014273,2]
[419296884,1775125842502,-500.0,0.00014273,2]
[419296885,1775125842511,-500.0,0.00014273,2]
[419296886,1775125842520,-500.0,0.00014273,2]
[419296887,1775125842530,-561.18350506,0.00014273,2]
[419296888,1775125842539,-500.0,0.00014273,2]
[419296889,1775125842548,-500.86988317,0.00014273,2]
[419296890,1775125842559,-500.0,0.00014273,2]
[419296891,1775125842568,-501.37276755,0.00014273,2]
[419296892,1775125842578,-503.55252603,0.00014273,2]
[419296893,1775125842587,-500.0,0.00014273,2]
[419296894,1775125842596,-500.0,0.00014273,2]
[419296897,1775125842993,-500.0,0.00014273,2]
[419296898,1775125843003,-229.62,0.00014314,2]
[419296899,1775125843013,-3474.3649,0.00014321,2]
[419296900,1775125843023,-1000.0,0.00014321,2]
[419296901,1775125843033,-150.0,0.00014351,2]
[419296902,1775125843042,-150.17792809,0.00014351,2]
[419296903,1775125843051,-150.0,0.00014351,2]
[419296904,1775125843061,-150.0,0.00014351,2]
[419296905,1775125843071,-150.0,0.00014351,2]
[419296906,1775125843081,-150.0,0.00014351,2]
[419296907,1775125843090,-150.0,0.00014351,2]
[419296908,1775125843100,-150.0,0.00014351,2]
[419296909,1775125843110,-150.0,0.00014351,2]
[419296911,1775125843120,-150.0,0.00014351,2]
[419296913,1775125843131,-150.0,0.00014351,2]
[419296915,1775125843142,-150.0,0.00014351,2]
[419296917,1775125843153,-150.0,0.00014351,2]
[419296919,1775125843163,-229.62,0.0001436,2]
[419296920,1775125843174,-150.0,0.00014402,2]
[419296922,1775125843185,-150.0,0.00014402,2]
[419296924,1775125843195,-150.0,0.00014402,2]
[419296926,1775125843206,-150.0,0.00014406,2]
[419296927,1775125843216,-229.62,0.00014406,2]
[419296928,1775125843225,-510.83599728,0.0001442,2]
[419296929,1775125843236,-500.0,0.0001442,2]
[419296930,1775125843245,-500.0,0.0001442,2]
[419296931,1775125843255,-500.0,0.0001442,2]
[419296932,1775125843265,-500.0,0.0001442,2]
[419296933,1775125843275,-500.0,0.0001442,2]
[419296934,1775125843285,-500.0,0.0001442,2]
[419296935,1775125843294,-500.0,0.0001442,2]
[419296936,1775125843304,-500.0,0.0001442,2]